lending/lending_fUSD_20241229
["ID","MTS","AMOUNT","RATE_DAILY","PERIOD"]
[347066745,1735488679791,-500.0,0.00012635,2]
[347066746,1735488679800,-779.8,0.00012635,2]
[347066747,1735488679809,-2319.96,0.00012635,2]
[347066748,1735488679819,-282.694704,0.00012635,2]
[347066749,1735488679828,-1742.95,0.00012635,2]
[347066750,1735488679838,-500.0,0.00012635,2]
[347066751,1735488679848,-869.89,0.00012635,2]
[347066752,1735488679858,-412.542015,0.00012635,2]
[347066753,1735488679867,-678.07,0.00012635,2]
[347066754,1735488679877,-1678.59,0.00012635,2]
[347066755,1735488679886,-412.542015,0.00012635,2]
[347066756,1735488679896,-157.84,0.00012635,2]
[347066757,1735488679908,-1863.04,0.00012635,2]
[347066758,1735488679917,-896.33,0.00012635,2]
[347066759,1735488679927,-500.0,0.00012635,2]
[347066760,1735488679937,-1238.45,0.00012635,2]
[347066761,1735488679947,-220.63256627,0.00012635,2]
[347066762,1735488679957,-500.0,0.00012635,2]
[347066763,1735488679967,-500.0,0.00012635,2]
[347066764,1735488679976,-500.0,0.00012635,2]
[347066765,1735488679986,-1061.17,0.00012635,2]
[347066766,1735488679996,-500.0,0.00012635,2]
[347066767,1735488680006,-1154.54,0.00012635,2]
[347066768,1735488680016,-790.5,0.00012635,2]
[347066769,1735488680025,-585.48,0.00012635,2]
[347066770,1735488680036,-500.0,0.00012635,2]
[347066771,1735488680045,-537.73,0.00012635,2]
[347066772,1735488680055,-500.0,0.00012635,2]
[347066773,1735488680064,-500.0,0.00012635,2]
[347066774,1735488680074,-500.0,0.00012635,2]
[347066775,1735488680084,-151.0,0.00012635,2]
[347066776,1735488680094,-1568.83,0.00012635,2]
[347066777,1735488680103,-500.0,0.00012635,2]
[347066778,1735488680113,-500.0,0.00012635,2]
[347066779,1735488680123,-151.0,0.00012635,2]
[347066780,1735488680132,-833.39,0.00012635,2]
[347066781,1735488680142,-500.0,0.00012635,2]
[347066782,1735488680151,-500.0,0.00012635,2]
[347066783,1735488680160,-500.0,0.00012635,2]
[347066784,1735488680170,-1710.95,0.00012635,2]
[347066785,1735488680179,-751.2,0.00012635,2]
[347066786,1735488680189,-500.0,0.00012635,2]
[347066787,1735488680199,-500.0,0.00012635,2]
[347066788,1735488680208,-1842.84,0.00012635,2]
[347066789,1735488680218,-1214.59,0.00012635,2]
[347066790,1735488680227,-500.0,0.00012635,2]
[347066791,1735488680237,-1111.53,0.00012635,2]
[347066792,1735488680247,-2016.37,0.00012635,2]
[347066793,1735488680256,-803.09,0.00012635,2]
[347066794,1735488680267,-2199.44,0.00012635,2]
[347066795,1735488680277,-627.86,0.00012635,2]
[347066796,1735488680287,-506.03,0.00012635,2]
[347066797,1735488680296,-500.0,0.00012635,2]
[347066798,1735488680305,-515.97,0.00012635,2]
[347066799,1735488680315,-2744.8,0.00012635,2]
[347066800,1735488680324,-566.61098963,0.00012635,2]
[347066801,1735488680333,-1105.66,0.00012635,2]
[347066802,1735488680343,-500.0,0.00012635,2]
[347066803,1735488680353,-500.0,0.00012635,2]
[347066804,1735488680367,-824.59,0.00012635,2]
[347066805,1735488680377,-500.0,0.00012635,2]
[347066806,1735488680386,-514.45,0.00012635,2]
[347066807,1735488680396,-500.0,0.00012635,2]
[347066808,1735488680406,-500.0,0.00012635,2]
[347066809,1735488680415,-500.0,0.00012635,2]
[347066810,1735488680425,-500.0,0.00012635,2]
[347066811,1735488680434,-2073.14,0.00012635,2]
[347066812,1735488680443,-500.0,0.00012635,2]
[347066813,1735488680453,-645.56,0.00012635,2]
[347066814,1735488680462,-515.49,0.00012635,2]
[347066815,1735488680472,-500.0,0.00012635,2]
[347066816,1735488680482,-500.0,0.00012635,2]
[347066817,1735488680491,-500.0,0.00012635,2]
[347066818,1735488680501,-500.0,0.00012635,2]
[347066819,1735488680511,-500.0,0.00012635,2]
[347066820,1735488680522,-1244.84,0.00012635,2]
[347066821,1735488680532,-500.0,0.00012635,2]
[347066822,1735488680543,-1292.05,0.00012635,2]
[347066823,1735488680552,-553.76,0.00012635,2]
[347066824,1735488680562,-501.76,0.00012635,2]
[347066825,1735488680572,-500.0,0.00012635,2]
[347066826,1735488680582,-500.0,0.00012635,2]
[347066827,1735488680592,-1896.52,0.00012635,2]
[347066828,1735488680602,-1229.43,0.00012635,2]
[347066829,1735488680612,-500.0,0.00012635,2]
[347066830,1735488680622,-500.0,0.00012635,2]
[347066831,1735488680632,-1020.66,0.00012635,2]
[347066832,1735488680641,-1083.79,0.00012635,2]
[347066833,1735488680650,-581.4,0.00012635,2]
[347066834,1735488680660,-2471.12,0.00012635,2]
[347066835,1735488680670,-2302.7,0.00012635,2]
[347066836,1735488680680,-585.21,0.00012635,2]
[347066837,1735488680689,-4260.97,0.00012635,2]
[347066838,1735488680698,-596.39,0.00012635,2]
[347066839,1735488680708,-1467.06,0.00012635,2]
[347066840,1735488680718,-989.93,0.00012635,2]
[347066841,1735488680730,-614.873596,0.00012635,2]
[347066842,1735488680740,-928.47,0.00012635,2]
[347066843,1735488680751,-500.0,0.00012635,2]
[347066844,1735488680762,-503.66,0.00012635,2]
[347066845,1735488680772,-1390.57,0.00012635,2]
[347066846,1735488680782,-614.873596,0.00012635,2]
[347066847,1735488680792,-786.45,0.00012635,2]
[347066848,1735488680802,-585.23,0.00012635,2]
[347066849,1735488680812,-500.0,0.00012635,2]
[347066850,1735488680821,-500.0,0.00012635,2]
[347066851,1735488680831,-500.0,0.00012635,2]
[347066852,1735488680841,-591.84,0.00012635,2]
[347066853,1735488680851,-2250.58,0.00012635,2]
[347066854,1735488680860,-1368.98,0.00012635,2]
[347066855,1735488680870,-500.0,0.00012635,2]
[347066856,1735488680880,-500.0,0.00012635,2]
[347066857,1735488680889,-500.0,0.00012635,2]
[347066858,1735488680900,-1025.22,0.00012635,2]
[347066859,1735488680910,-1529.19,0.00012635,2]
[347066860,1735488680920,-536.05,0.00012635,2]
[347066861,1735488680929,-500.0,0.00012635,2]
[347066862,1735488680939,-500.0,0.00012635,2]
[347066863,1735488680948,-2661.11,0.00012635,2]
[347066864,1735488680958,-873.52,0.00012635,2]
[347066865,1735488680967,-500.0,0.00012635,2]
[347066866,1735488680977,-500.0,0.00012635,2]
[347066867,1735488680987,-500.0,0.00012635,2]
[347066868,1735488680996,-1309.02,0.00012635,2]
[347066869,1735488681006,-544.39,0.00012635,2]
[347066870,1735488681016,-5942.9,0.00012635,2]
[347066871,1735488681027,-551.62,0.00012635,2]
[347066872,1735488681036,-500.0,0.00012635,2]
[347066873,1735488681046,-563.6,0.00012635,2]
[347066874,1735488681056,-500.0,0.00012635,2]
[347066875,1735488681066,-1235.23,0.00012635,2]
[347066876,1735488681076,-1715.54,0.00012635,2]
[347066877,1735488681085,-613.4,0.00012635,2]
[347066878,1735488681095,-500.0,0.00012635,2]
[347066879,1735488681105,-500.0,0.00012635,2]
[347066880,1735488681115,-554.08,0.00012635,2]
[347066881,1735488681125,-3606.89,0.00012635,2]
[347066882,1735488681135,-500.0,0.00012635,2]
[347066883,1735488681144,-1633.97,0.00012635,2]
[347066884,1735488681153,-389.29,0.00012635,2]
[347066885,1735488681162,-672.21,0.00012635,2]
[347066886,1735488681172,-1141.63,0.00012635,2]
[347066887,1735488681181,-500.0,0.00012635,2]
[347066888,1735488681191,-500.0,0.00012635,2]
[347066889,1735488681200,-4513.73,0.00012635,2]
[347066890,1735488681209,-1349.85,0.00012635,2]
[347066891,1735488681218,-151.0,0.00012635,2]
[347066892,1735488681228,-500.0,0.00012635,2]
[347066893,1735488681238,-508.55,0.00012635,2]
[347066894,1735488681247,-500.0,0.00012635,2]
[347066895,1735488681256,-284.140798,0.00012635,2]
[347066896,1735488681266,-1219.09,0.00012635,2]
[347066897,1735488681275,-2582.9,0.00012635,2]
[347066898,1735488681285,-1357.58,0.00012635,2]
[347066899,1735488681294,-2228.51,0.00012635,2]
[347066900,1735488681304,-813.92,0.00012635,2]
[347066901,1735488681313,-1998.82,0.00012635,2]
[347066902,1735488681322,-500.0,0.00012635,2]
[347066903,1735488681332,-586.24,0.00012635,2]
[347066904,1735488681342,-816.723256,0.00012635,2]
[347066905,1735488681352,-755.57,0.00012635,2]
[347066906,1735488681364,-1714.78,0.00012635,2]
[347066907,1735488681373,-6587.53,0.00012635,2]
[347066908,1735488681542,-816.723256,0.00012635,2]
[347066909,1735488681562,-3929.59,0.00012635,2]
[347066910,1735488681572,-579.57,0.00012635,2]
[347066911,1735488681582,-1115.62,0.00012635,2]
[347066912,1735488681592,-1076.48,0.00012635,2]
[347066913,1735488681602,-3562.23,0.00012635,2]
[347066914,1735488681611,-500.0,0.00012635,2]
[347066915,1735488681621,-1607.56,0.00012635,2]
[347066916,1735488681631,-764.89,0.00012635,2]
[347066917,1735488681640,-839.67,0.00012635,2]
[347066918,1735488681649,-6059.7,0.00012635,2]
[347066919,1735488681659,-646.63730224,0.00012635,2]
[347066920,1735488681669,-601.2,0.00012635,2]
[347066921,1735488681679,-172.174249,0.00012635,2]
[347066922,1735488681689,-500.0,0.00012635,2]
[347066923,1735488681698,-1376.85,0.00012635,2]
[347066924,1735488681708,-500.0,0.00012635,2]
[347066925,1735488681718,-500.0,0.00012635,2]
[347066926,1735488681727,-949.13,0.00012635,2]
[347066927,1735488681737,-19790.74,0.00012635,2]
[347066928,1735488681747,-791.13,0.00012635,2]
[347066929,1735488681756,-2320.67,0.00012635,2]
[347066930,1735488681767,-151.0,0.00012635,2]
[347066931,1735488681776,-500.0,0.00012635,2]
[347066932,1735488681786,-500.0,0.00012635,2]
[347066933,1735488681795,-500.0,0.00012635,2]
[347066934,1735488681804,-503.43,0.00012635,2]
[347066935,1735488681815,-653.52,0.00012635,2]
[347066936,1735488681825,-305.53707995,0.00012635,2]
[347066937,1735488681835,-2382.92,0.00012635,2]
[347066938,1735488681845,-867.85,0.00012635,2]
[347066939,1735488681856,-1507.37,0.00012635,2]
[347066940,1735488681865,-500.0,0.00012635,2]
[347066941,1735488681875,-2219.5,0.00012635,2]
[347066942,1735488681885,-617.34,0.00012635,2]
[347066943,1735488681894,-694.29,0.00012635,2]
[347066944,1735488681903,-3871.95,0.00012635,2]
[347066945,1735488681913,-1835.67,0.00012635,2]
[347066946,1735488681923,-595.7,0.00012635,2]
[347066947,1735488681932,-500.0,0.00012635,2]
[347066948,1735488681942,-500.0,0.00012635,2]
[347066949,1735488681951,-1893.74,0.00012635,2]
[347066950,1735488681961,-1947.97,0.00012635,2]
[347066951,1735488681971,-500.0,0.00012635,2]
[347066952,1735488681981,-1878.18,0.00012635,2]
[347066953,1735488681992,-1164.34,0.00012635,2]
[347066954,1735488682002,-1209.08,0.00012635,2]
[347066955,1735488682011,-5594.98,0.00012635,2]
[347066956,1735488682027,-500.0,0.00012635,2]
[347066957,1735488682037,-500.0,0.00012635,2]
[347066958,1735488682047,-500.0,0.00012635,2]
[347066959,1735488682057,-1077.74,0.00012635,2]
[347066960,1735488682067,-1354.3,0.00012635,2]
[347066961,1735488682077,-7228.43,0.00012635,2]
[347066962,1735488682086,-669.29,0.00012635,2]
[347066963,1735488682096,-12497.94,0.00012635,2]
[347066964,1735488682106,-1725.0,0.00012635,2]
[347066965,1735488682117,-610.92,0.00012635,2]
[347066966,1735488682126,-530.12,0.00012635,2]
[347066967,1735488682136,-500.0,0.00012635,2]
[347066968,1735488682147,-244.756921,0.00012635,2]
[347066969,1735488682157,-500.0,0.00012635,2]
[347066970,1735488682166,-500.0,0.00012635,2]
[347066971,1735488682176,-1372.72,0.00012635,2]
[347066972,1735488682186,-9039.1,0.00012635,2]
[347066973,1735488682196,-244.756921,0.00012635,2]
[347066974,1735488682206,-500.0,0.00012635,2]
[347066975,1735488682216,-500.0,0.00012635,2]
[347066976,1735488682226,-152.73694,0.00012635,2]
[347066977,1735488682235,-2111.34,0.00012635,2]
[347066978,1735488682245,-500.0,0.00012635,2]
[347066979,1735488682255,-3483.282188,0.00012635,2]
[347066980,1735488682266,-3362.08,0.00012635,2]
[347066981,1735488682276,-3429.50371,0.00012635,2]
[347066982,1735488682286,-1401.96,0.00012635,2]
[347066983,1735488682296,-916.92,0.00012635,2]
[347066984,1735488682305,-7675.09,0.00012635,2]
[347066985,1735488682315,-500.0,0.00012635,2]
[347066986,1735488682324,-582.55703403,0.00012635,2]
[347066987,1735488682334,-500.0,0.00012635,2]
[347066988,1735488682344,-500.0,0.00012635,2]
[347066989,1735488682354,-1595.64,0.00012635,2]
[347066990,1735488682368,-1828.3,0.00012635,2]
[347066991,1735488682377,-1906.71,0.00012635,2]
[347066992,1735488682387,-500.0,0.00012635,2]
[347066993,1735488682397,-1770.2,0.00012635,2]
[347066994,1735488682407,-500.0,0.00012635,2]
[347066995,1735488682418,-4257.37,0.00012635,2]
[347066996,1735488682428,-500.0,0.00012635,2]
[347066997,1735488682439,-2065.67,0.00012635,2]
[347066998,1735488682449,-500.0,0.00012635,2]
[347066999,1735488682459,-500.0,0.00012635,2]
[347067000,1735488682469,-500.0,0.00012635,2]
[347067001,1735488682479,-5399.0,0.00012635,2]
[347067002,1735488682488,-500.0,0.00012635,2]
[347067003,1735488682498,-4466.91,0.00012635,2]
[347067004,1735488682508,-500.0,0.00012635,2]
[347067005,1735488682518,-151.0,0.00012636,2]
[347067006,1735488682528,-151.0,0.00012636,2]
[347067007,1735488682537,-259.893399,0.00012636,2]
[347067008,1735488682547,-151.0,0.00012636,2]
[347067009,1735488682556,-151.0,0.00012636,2]
[347067010,1735488682566,-2761.31,0.00012636,2]
[347067011,1735488682576,-500.0,0.00012636,2]
[347067012,1735488682585,-500.0,0.00012636,2]
[347067013,1735488682595,-181.041641,0.00012636,2]
[347067014,1735488682605,-500.0,0.00012636,2]
[347067015,1735488682615,-1327.0,0.00012636,2]
[347067016,1735488682625,-727.81,0.00012636,2]
[347067017,1735488682635,-20148.96,0.00012636,2]
[347067018,1735488682645,-500.0,0.00012636,2]
[347067019,1735488682655,-500.0,0.00012636,2]
[347067020,1735488682664,-500.0,0.00012636,2]
[347067021,1735488682674,-2348.44,0.00012636,2]
[347067022,1735488682685,-500.0,0.00012636,2]
[347067023,1735488682694,-1245.39,0.00012636,2]
[347067024,1735488682704,-527.41,0.00012636,2]
[347067025,1735488682714,-500.0,0.00012636,2]
[347067026,1735488682724,-500.0,0.00012636,2]
[347067027,1735488682734,-3503.68,0.00012636,2]
[347067028,1735488682744,-987.26,0.00012636,2]
[347067029,1735488682753,-375.677861,0.00012636,2]
[347067030,1735488682762,-153.5,0.00012636,2]
[347067031,1735488682774,-1487.5,0.00012636,2]
[347067032,1735488682784,-375.677861,0.00012636,2]
[347067033,1735488682794,-500.0,0.00012636,2]
[347067034,1735488682804,-500.0,0.00012636,2]
[347067035,1735488682813,-500.0,0.00012636,2]
[347067036,1735488682823,-500.0,0.00012636,2]
[347067037,1735488682832,-500.0,0.00012636,2]
[347067038,1735488682842,-564.6,0.00012636,2]
[347067039,1735488682852,-2207.4,0.00012636,2]
[347067040,1735488682861,-500.0,0.00012636,2]
[347067041,1735488682871,-500.0,0.00012636,2]
[347067042,1735488682881,-500.0,0.00012636,2]
[347067043,1735488682891,-987.2,0.00012636,2]
[347067044,1735488682900,-782.42,0.00012636,2]
[347067045,1735488682910,-500.0,0.00012636,2]
[347067046,1735488682920,-971.08,0.00012636,2]
[347067047,1735488682929,-381.834246,0.00012636,2]
[347067048,1735488682939,-500.0,0.00012636,2]
[347067049,1735488682949,-625.05,0.00012636,2]
[347067050,1735488682960,-381.834246,0.00012636,2]
[347067051,1735488682969,-500.0,0.00012636,2]
[347067052,1735488682979,-500.0,0.00012636,2]
[347067053,1735488682989,-500.0,0.00012636,2]
[347067054,1735488682999,-700.74,0.00012636,2]
[347067055,1735488683009,-813.32,0.00012636,2]
[347067056,1735488683019,-500.0,0.00012636,2]
[347067057,1735488683028,-14656.54,0.00012636,2]
[347067058,1735488683038,-819.7,0.00012636,2]
[347067059,1735488683048,-500.0,0.00012636,2]
[347067060,1735488683058,-500.0,0.00012636,2]
[347067061,1735488683067,-2939.33,0.00012636,2]
[347067062,1735488683077,-828.91,0.00012636,2]
[347067063,1735488683086,-500.0,0.00012636,2]
[347067064,1735488683096,-500.0,0.00012636,2]
[347067065,1735488683106,-530.75,0.00012636,2]
[347067066,1735488683116,-2500.52,0.00012636,2]
[347067067,1735488683126,-500.0,0.00012636,2]
[347067068,1735488683136,-1067.86,0.00012636,2]
[347067069,1735488683146,-500.0,0.00012636,2]
[347067070,1735488683156,-500.0,0.00012636,2]
[347067071,1735488683166,-500.0,0.00012636,2]
[347067072,1735488683176,-2562.57,0.00012636,2]
[347067073,1735488683185,-605.28,0.00012636,2]
[347067074,1735488683195,-760.22,0.00012636,2]
[347067075,1735488683205,-4160.82,0.00012636,2]
[347067076,1735488683214,-500.0,0.00012636,2]
[347067077,1735488683224,-151.0,0.00012636,2]
[347067078,1735488683233,-1889.09,0.00012636,2]
[347067079,1735488683243,-500.0,0.00012636,2]
[347067080,1735488683253,-500.0,0.00012636,2]
[347067081,1735488683263,-1317.14,0.00012636,2]
[347067082,1735488683273,-500.0,0.00012636,2]
[347067083,1735488683283,-500.0,0.00012636,2]
[347067084,1735488683292,-500.0,0.00012636,2]
[347067085,1735488683302,-2304.44,0.00012636,2]
[347067086,1735488683311,-500.0,0.00012636,2]
[347067087,1735488683320,-201.844002,0.00012636,2]
[347067088,1735488683329,-1101.75,0.00012636,2]
[347067089,1735488683339,-311.819869,0.00012636,2]
[347067090,1735488683348,-1395.97,0.00012636,2]
[347067091,1735488683363,-311.819869,0.00012636,2]
[347067092,1735488683373,-500.0,0.00012636,2]
[347067093,1735488683382,-500.0,0.00012636,2]
[347067094,1735488683392,-500.0,0.00012636,2]
[347067095,1735488683402,-1565.21,0.00012636,2]
[347067096,1735488683412,-550.22,0.00012636,2]
[347067097,1735488683421,-528.87,0.00012636,2]
[347067098,1735488683431,-2406.87,0.00012636,2]
[347067099,1735488683440,-500.0,0.00012636,2]
[347067100,1735488683450,-383.12313626,0.00012636,2]
[347067101,1735488683459,-1148.49,0.00012636,2]
[347067102,1735488683468,-500.0,0.00012636,2]
[347067103,1735488683478,-412.542015,0.00012636,2]
[347067104,1735488683487,-500.0,0.00012636,2]
[347067105,1735488683497,-4245.74,0.00012636,2]
[347067106,1735488683508,-500.0,0.00012636,2]
[347067107,1735488683517,-412.542015,0.00012636,2]
[347067108,1735488683527,-177.610544,0.00012636,2]
[347067109,1735488683537,-2334.13,0.00012636,2]
[347067110,1735488683546,-500.0,0.00012636,2]
[347067111,1735488683556,-177.610544,0.00012636,2]
[347067112,1735488683565,-1274.72,0.00012636,2]
[347067113,1735488683575,-500.0,0.00012636,2]
[347067114,1735488683585,-500.0,0.00012636,2]
[347067115,1735488683595,-1034.1,0.00012636,2]
[347067116,1735488683605,-500.0,0.00012636,2]
[347067117,1735488683615,-2292.21,0.00012636,2]
[347067118,1735488683624,-479.10382871,0.00012636,2]
[347067119,1735488683634,-500.0,0.00012636,2]
[347067120,1735488683643,-1392.86,0.00012636,2]
[347067121,1735488683652,-311.23738651,0.00012636,2]
[347067122,1735488683662,-500.0,0.00012636,2]
[347067123,1735488683671,-710.02,0.00012636,2]
[347067124,1735488683680,-1928.1,0.00012636,2]
[347067125,1735488683689,-637.6514696,0.00012636,2]
[347067126,1735488683699,-841.82,0.00012636,2]
[347067127,1735488683710,-151.0,0.00012636,2]
[347067128,1735488683719,-2218.33,0.00012636,2]
[347067129,1735488683729,-500.0,0.00012636,2]
[347067130,1735488683738,-642.09,0.00012636,2]
[347067131,1735488683747,-500.0,0.00012636,2]
[347067132,1735488683757,-151.0,0.00012636,2]
[347067133,1735488683766,-500.0,0.00012636,2]
[347067134,1735488683776,-500.0,0.00012636,2]
[347067135,1735488683785,-1534.75,0.00012636,2]
[347067136,1735488683796,-1158.55,0.00012636,2]
[347067137,1735488683806,-570.63,0.00012636,2]
[347067138,1735488683816,-500.0,0.00012636,2]
[347067139,1735488683826,-929.29,0.00012636,2]
[347067140,1735488683835,-2726.97,0.00012636,2]
[347067141,1735488683845,-500.0,0.00012636,2]
[347067142,1735488683854,-500.0,0.00012636,2]
[347067143,1735488683864,-500.0,0.00012636,2]
[347067144,1735488683874,-500.0,0.00012636,2]
[347067145,1735488683883,-949.81,0.00012636,2]
[347067146,1735488683893,-500.0,0.00012636,2]
[347067147,1735488683902,-500.0,0.00012636,2]
[347067148,1735488683911,-1011.72,0.00012636,2]
[347067149,1735488683921,-4370.35,0.00012636,2]
[347067150,1735488683930,-500.0,0.00012636,2]
[347067151,1735488683939,-500.0,0.00012636,2]
[347067152,1735488683949,-500.0,0.00012636,2]
[347067153,1735488683959,-736.12,0.00012636,2]
[347067154,1735488684024,-1065.4,0.00012636,2]
[347067155,1735488684034,-500.0,0.00012636,2]
[347067156,1735488684044,-500.0,0.00012636,2]
[347067157,1735488684055,-1365.28,0.00012636,2]
[347067158,1735488684065,-1375.08,0.00012636,2]
[347067159,1735488684074,-500.0,0.00012636,2]
[347067160,1735488684083,-500.0,0.00012636,2]
[347067161,1735488684093,-4162.07,0.00012636,2]
[347067162,1735488684104,-528.05544638,0.00012636,2]
[347067163,1735488684113,-1380.91,0.00012636,2]
[347067164,1735488684123,-940.76,0.00012636,2]
[347067165,1735488684132,-500.0,0.00012636,2]
[347067166,1735488684142,-500.0,0.00012636,2]
[347067167,1735488684152,-367.75710771,0.00012636,2]
[347067168,1735488684162,-977.28,0.00012636,2]
[347067169,1735488684171,-500.0,0.00012636,7]
[347067170,1735488684180,-904.8,0.00012636,2]
[347067171,1735488684190,-245.66134047,0.00012636,2]
[347067172,1735488684199,-990.61,0.00012636,2]
[347067173,1735488684208,-255.04388439,0.00012636,2]
[347067174,1735488684218,-1938.49,0.00012636,2]
[347067175,1735488684227,-1419.58,0.00012636,2]
[347067176,1735488684237,-500.0,0.00012636,2]
[347067177,1735488684246,-2962.12,0.00012636,2]
[347067178,1735488684255,-868.85,0.00012636,2]
[347067179,1735488684266,-1801.73,0.00012636,2]
[347067180,1735488684276,-1138.52,0.00012636,2]
[347067181,1735488684286,-1296.51,0.00012636,2]
[347067182,1735488684295,-1026.56,0.00012636,2]
[347067183,1735488684305,-7123.99,0.00012636,2]
[347067184,1735488684315,-1330.77,0.00012636,2]
[347067185,1735488684325,-1125.38,0.00012636,2]
[347067186,1735488684334,-500.0,0.00012636,2]
[347067187,1735488684344,-956.19,0.00012636,2]
[347067188,1735488684354,-760.51,0.00012636,2]
[347067189,1735488684367,-614.873596,0.00012636,2]
[347067190,1735488684376,-2537.98,0.00012636,2]
[347067191,1735488684386,-614.873596,0.00012636,2]
[347067192,1735488684396,-500.0,0.00012636,2]
[347067193,1735488684406,-1192.89,0.00012636,2]
[347067194,1735488684415,-500.0,0.00012636,2]
[347067195,1735488684425,-1296.82,0.00012636,2]
[347067196,1735488684434,-16453.72,0.00012636,2]
[347067197,1735488684443,-500.0,0.00012636,2]
[347067198,1735488684453,-589.52,0.00012636,2]
[347067199,1735488684462,-500.0,0.00012636,2]
[347067200,1735488684472,-500.0,0.00012636,2]
[347067201,1735488684481,-1883.51,0.00012636,2]
[347067202,1735488684491,-500.0,0.00012636,2]
[347067203,1735488684500,-500.0,0.00012636,2]
[347067204,1735488684510,-1568.93,0.00012636,2]
[347067205,1735488684520,-248.6,0.00012636,2]
[347067206,1735488684529,-12322.36,0.00012636,2]
[347067207,1735488684538,-631.77,0.00012636,2]
[347067208,1735488684548,-500.0,0.00012636,2]
[347067209,1735488684557,-2211.52,0.00012636,2]
[347067210,1735488684567,-500.0,0.00012636,2]
[347067211,1735488684577,-1338.22,0.00012636,2]
[347067212,1735488684586,-1245.55,0.00012636,2]
[347067213,1735488684596,-1945.96,0.00012636,2]
[347067214,1735488684605,-500.0,0.00012636,2]
[347067215,1735488684614,-394.92,0.00012636,2]
[347067216,1735488684624,-599.95,0.00012636,2]
[347067217,1735488684633,-1494.68,0.00012636,2]
[347067218,1735488684642,-1286.36,0.00012636,2]
[347067219,1735488684652,-884.33,0.00012636,2]
[347067220,1735488684661,-813.82,0.00012636,2]
[347067221,1735488684671,-4720.21,0.00012636,2]
[347067222,1735488684680,-1514.65,0.00012636,2]
[347067223,1735488684690,-500.0,0.00012636,2]
[347067224,1735488684700,-500.0,0.00012636,2]
[347067225,1735488684709,-500.0,0.00012636,2]
[347067226,1735488684718,-500.0,0.00012636,2]
[347067227,1735488684728,-1312.16,0.00012636,2]
[347067228,1735488684738,-500.0,0.00012636,2]
[347067229,1735488684747,-500.0,0.00012636,2]
[347067230,1735488684756,-856.59,0.00012636,2]
[347067231,1735488684766,-755.56,0.00012636,2]
[347067232,1735488684776,-500.0,0.00012636,2]
[347067233,1735488684786,-500.0,0.00012636,2]
[347067234,1735488684795,-1031.25,0.00012636,2]
[347067235,1735488684806,-1132.32,0.00012636,2]
[347067236,1735488684816,-500.0,0.00012636,2]
[347067237,1735488684825,-2892.2,0.00012636,2]
[347067238,1735488684835,-500.0,0.00012636,2]
[347067239,1735488684845,-500.0,0.00012636,2]
[347067240,1735488684854,-163.88,0.00012636,2]
[347067241,1735488684864,-1006.65,0.00012636,2]
[347067242,1735488684873,-1043.5,0.00012636,2]
[347067243,1735488684883,-846.6,0.00012636,2]
[347067244,1735488684892,-596.79,0.00012636,2]